Cogmind - Beta 13 *** ADVENTURER MODE // 2024.04.03 @ 11:25:32 Player: ActualDio Result: Self-destructed Performance ------------- Evolutions (2) 1000 Regions Visited (4) 800 Robots Destroyed (24) 120 Value Destroyed (468) 468 Prototype IDs (3) 60 Alien Tech Used (0) 0 Bonus (0) 0 TOTAL SCORE: 2448 Bonus ------- None Cogmind --------- Core Integrity 539/550 Matter 199/300 Energy 275/275 System Corruption 0% Temperature Cool (33) Movement Rolling (215) Ox9 Location -8/Materials Parts ------- > --- POWER (1) -------- Deuterium Engine > --- PROPULSION (4) --- Wheel > --- UTILITY (4) ------ Huge Storage Unit Trap Scanner ECM Suite Core Shielding > --- WEAPON (2) ------- Assault Rifle > --- INVENTORY (25) --- Deuterium Engine Terrain Scan Processor Targeting Computer ECM Suite Propulsion Shielding Insulated Plating Bomb Drone Bay (16/16) Beam Cannon Shotgun Shotgun Improved Light Cannon Improved Light Cannon Improved Light Cannon Improved Light Cannon Grenade Launcher Datajack Mining Laser Makeshift Spear Peak State ------------ > --- POWER ------------ Deuterium Engine > --- PROPULSION ------- Wheel Wheel Wheel > --- UTILITY ---------- Huge Storage Unit Core Shielding Bomb Drone Bay > --- WEAPON ----------- Assault Rifle Assault Rifle > --- INVENTORY -------- Deuterium Engine Trap Scanner Terrain Scan Processor Targeting Computer ECM Suite ECM Suite Propulsion Shielding Insulated Plating Beam Cannon Shotgun Shotgun Improved Light Cannon Improved Light Cannon Improved Light Cannon Improved Light Cannon Grenade Launcher Datajack Mining Laser Makeshift Spear [Rating: 27] Favorites ----------- Power Light Ion Engine Engine Light Ion Engine Propulsion Wheel Wheel Wheel Utility Huge Storage Unit Device Terrain Scanner Storage Huge Storage Unit Protection Core Shielding Weapon Assault Rifle Energy Gun Small Laser Ballistic Gun Assault Rifle Ballistic Cannon Light Cannon Build | -11 -10 -10 -10 -8 ------- Run | Yrd Mat Min Sub Mat Slots Evolved 4 | . . . . 4 Power . | . . . . . Propulsion 2 | . . . . 2 Utility 2 | . . . . 2 Weapon . | . . . . . Parts Attached 33 | 7 17 4 . 5 Power 4 | 1 2 1 . . Engine 4 | 1 2 1 . . Core . | . . . . . Reactor . | . . . . . Propulsion 9 | 2 5 1 . 1 Treads . | . . . . . Leg . | . . . . . Wheel 9 | 2 5 1 . 1 Hover . | . . . . . Flight . | . . . . . Utility 12 | 1 6 1 . 4 Device 7 | . 3 . . 4 Storage 4 | 1 3 . . . Processor . | . . . . . Hackware . | . . . . . Protection 1 | . . 1 . . Artifact . | . . . . . Weapon 8 | 3 4 1 . . Energy Gun 2 | 2 . . . . Energy Cannon . | . . . . . Ballistic Gun 4 | 1 2 1 . . Ballistic Cannon 2 | . 2 . . . Launcher . | . . . . . Special Weapon . | . . . . . Impact Weapon . | . . . . . Slashing Weapon . | . . . . . Piercing Weapon . | . . . . . Special Melee Weapon . | . . . . . Unidentified Prototypes 1 | . . . . 1 Parts Lost 5 | . 1 1 . 3 Power . | . . . . . Propulsion 2 | . . . . 2 Utility 2 | . 1 1 . . Weapon 1 | . . . . 1 Highest Loss Streak 3 | . 1 1 . 3 To Critical Strikes . | . . . . . Average Slot Usage (%) 96 | . 92 99 100 86 Engine 13 | . 14 14 14 9 Wheel 27 | . 28 28 28 27 Device 8 | . 6 9 . 15 Storage 14 | . 14 14 14 9 Protection 2 | . . 3 14 9 Energy Gun 1 | . 2 . . . Ballistic Gun 22 | . 15 28 28 16 Ballistic Cannon 3 | . 9 . . . Naked Turns . | . . . . . Heaviest Build 98 | 12 90 94 94 98 Greatest Support 30 | 26 26 20 20 30 Greatest Overweight (x) 4 | . 4 4 4 3 Average Overweight (x) 3 | . 3 4 4 3 Largest Inventory Capacity 25 | 8 25 25 25 25 Average Capacity 24 | 6 23 25 25 25 Most Carried 25 | 5 23 25 22 21 Average Carried 18 | 4 11 23 22 19 Final Capacity 25 | 8 25 25 25 25 Final Carried 23 | 4 23 22 22 19 Class Distribution -------------------- 100% | Mutant Dominant Class ---------------- Mutant | -10/Materials Mutant | -10/Mines Mutant | -10/Subcaves Mutant | -8/Materials Resources | -11 -10 -10 -10 -8 ----------- Run | Yrd Mat Min Sub Mat Matter Collected 746 | 202 364 180 . . Remotely . | . . . . . Salvage Created 551 | . 319 159 . 73 Parts 43 | . 27 11 . 5 Haulers Intercepted . | . . . . . Recyclers Shooed 2 | . 2 . . . Parts Field Recycled . | . . . . . Retrieved Matter . | . . . . . Parts Self-Destructed . | . . . . . Prevented . | . . . . . Kills | -11 -10 -10 -10 -8 ------- Run | Yrd Mat Min Sub Mat Combat Hostiles Destroyed 15 | . 7 7 . 1 Guns 8 | . . 7 . 1 Cannons 7 | . 7 . . . Classes Destroyed 5 | . 5 . . . Builder 5 | . 5 . . . Recycler 1 | . 1 . . . Watcher 3 | . 2 . . 1 Swarmer 8 | . 3 5 . . Grunt 7 | . 4 2 . 1 Best Kill Streak 8 | . 8 3 . 2 Combat Bots Only 7 | . 7 3 . 1 Max Kills in Single Turn 1 | . 1 1 . 1 Gunslinging . | . . . . . Exploded . | . . . . . Melee . | . . . . . Uniques/NPCs Destroyed . | . . . . . Combat | -11 -10 -10 -10 -8 -------- Run | Yrd Mat Min Sub Mat Hostile Shots Fired 134 | . 68 43 4 19 Missed 43 | . 28 10 1 4 Damage Taken 935 | . 363 292 45 235 Core 183 | . 66 94 12 11 Absorbed by Shields . | . . . . . Redirected to Shielding 5 | . . . 3 2 Ignored by Resistances 274 | . 113 83 13 65 Core Remaining (%) 65 | 100 . . 31 . Volleys Fired 76 | . 39 19 . 18 Largest 2 | . 2 2 . 2 Hottest 60 | . 60 40 . 40 Shots Fired 130 | . 78 30 . 22 Gun 94 | . 42 30 . 22 Cannon 36 | . 36 . . . Launcher . | . . . . . Special . | . . . . . Kinetic 127 | . 75 30 . 22 Thermal 3 | . 3 . . . Explosive . | . . . . . Electromagnetic . | . . . . . Robot Hit Streak 17 | . 15 17 . 14 Robot Miss Streak 4 | . 4 2 . 1 Penetration Max . | . . . . . Secondary Targets 2 | . . 1 . 1 Max Gunslinging Chain 1 | . . 1 . 1 Shots Hit Robots 102 | . 57 25 . 20 Core Hits 40 | . 21 10 . 9 Critical Kills . | . . . . . Critical Parts Destroyed 1 | . . . . 1 Critical Strikes 3 | . 2 . . 1 Destroy 1 | . . . . 1 Blast 2 | . 2 . . . Melee Attacks . | . . . . . Impact . | . . . . . Slashing . | . . . . . Piercing . | . . . . . Sneak Attacks . | . . . . . Combat Hostiles . | . . . . . Follow-up Attacks . | . . . . . Damage Inflicted 1402 | . 796 349 . 257 Guns 855 | . 263 335 . 257 Cannons 530 | . 530 . . . Explosions . | . . . . . Melee . | . . . . . Ramming 17 | . 3 14 . . Kinetic 1375 | . 783 335 . 257 Thermal 10 | . 10 . . . Explosive . | . . . . . Electromagnetic . | . . . . . Impact . | . . . . . Slashing . | . . . . . Piercing . | . . . . . Highest Corruption . | . . . . . Average Corruption . | . . . . . Corruption Purged . | . . . . . Corruption Blocked . | . . . . . Overload Shots . | . . . . . Overflow Damage . | . . . . . Projectiles . | . . . . . Explosions . | . . . . . Melee . | . . . . . Knockbacks 4 | . 4 . . . Impact . | . . . . . Kinetic 4 | . 4 . . . Secondary . | . . . . . Self-Inflicted Damage 8 | . 1 7 . . Shots . | . . . . . Rammed 2 | . 1 1 . . Targets Rammed 2 | . 1 1 . . Kicked . | . . . . . Crushed . | . . . . . Highest Temperature 85 | . 85 20 . 15 Average Temperature 23 | . 27 6 . 10 Received Heat Transfer 588 | . 240 177 18 153 Siege Activations . | . . . . . Robots Corrupted . | . . . . . Combat Hostiles . | . . . . . Parts Fried . | . . . . . Impact Corruptions . | . . . . . Robots Melted . | . . . . . Combat Hostiles . | . . . . . Parts Melted . | . . . . . Heat Transferred 25 | . 25 . . . Parts Sabotaged . | . . . . . Parts Stolen . | . . . . . Parts Stripped . | . . . . . Power Chain Reactions . | . . . . . Alert | -11 -10 -10 -10 -8 ------- Run | Yrd Mat Min Sub Mat Peak Influence 239 | . 239 110 . 57 Initial . | . . . . . Average 42 | . 78 19 . 24 Maximum Alert Level 1 | . 1 . . . Low Security (%) 94 | 100 85 100 . 100 Level 1 5 | . 14 . . . Level 2 . | . . . . . Level 3 . | . . . . . Level 4 . | . . . . . Level 5 . | . . . . . High Security . | . . . . . Max Security . | . . . . . Squads Dispatched 3 | . . 1 . 2 Investigation 1 | . . 1 . . Extermination . | . . . . . Reinforcement 1 | . . . . 1 Assault . | . . . . . Garrison 1 | . . . . 1 Intercept . | . . . . . Searches Triggered . | . . . . . Construction Impeded . | . . . . . Haulers Reinforced . | . . . . . Active Scanning Responses . | . . . . . Cargo Convoy Interrupts . | . . . . . Stealth | -11 -10 -10 -10 -8 --------- Run | Yrd Mat Min Sub Mat Distress Signals 3 | . 2 . . 1 Communications Jammed . | . . . . . Distress Signals . | . . . . . Times Spotted 37 | . 16 10 1 10 Peak Tracking Total 8 | . 6 3 1 8 Tactical Retreats . | . . . . . Traps | -11 -10 -10 -10 -8 ------- Run | Yrd Mat Min Sub Mat Traps Triggered 1 | . 1 . . . Indirectly . | . . . . . Trap Hack Attempts . | . . . . . Triggered . | . . . . . Disarmed 6 | . 6 . . . Reprogrammed . | . . . . . Reused . | . . . . . Traps Extracted . | . . . . . Installed . | . . . . . Triggered . | . . . . . Machines | -11 -10 -10 -10 -8 ---------- Run | Yrd Mat Min Sub Mat Machines Disabled 1 | . 1 . . . Max in Single Turn 1 | . 1 . . . Machines Repaired . | . . . . . Machines Dismantled . | . . . . . Machines Sabotaged . | . . . . . Overloaded Fab Kills . | . . . . . Hacking | -11 -10 -10 -10 -8 --------- Run | Yrd Mat Min Sub Mat Machines Accessed 12 | . 10 2 . . Terminals 8 | . 8 . . . Fabricators . | . . . . . Repair Stations . | . . . . . Recycling Units 2 | . 2 . . . Scanalyzers . | . . . . . Garrison Access . | . . . . . Total Hacks 40 | . 38 2 . . Successful 28 | . 26 2 . . Failed 12 | . 12 . . . Catastrophic 3 | . 3 . . . Database Lockouts . | . . . . . Manual 5 | . 5 . . . Terminals 33 | . 33 . . . Fabricators . | . . . . . Repair Stations . | . . . . . Recycling Units 5 | . 5 . . . Scanalyzers . | . . . . . Garrison Access . | . . . . . Terminal Hacks 24 | . 22 2 . . Record 6 | . 6 . . . Robot Analysis 1 | . 1 . . . Prototype ID Bank 1 | . 1 . . . Open Door 2 | . . 2 . . Level Access Points 1 | . 1 . . . Branch Access Points 1 | . 1 . . . Emergency Access Points 2 | . 2 . . . Locate Traps 2 | . 2 . . . Disarm Traps 1 | . 1 . . . Transport Status 1 | . 1 . . . Hauler Manifests 1 | . 1 . . . Registered Components 1 | . 1 . . . Zone Layout 4 | . 4 . . . Fabricator Hacks . | . . . . . Repair Station Hacks . | . . . . . Recycling Unit Hacks 4 | . 4 . . . Process 1 | . 1 . . . Report Inventory 2 | . 2 . . . Retrieve Matter 1 | . 1 . . . Scanalyzer . | . . . . . Garrison Access Hacks . | . . . . . Unauthorized Hacks . | . . . . . Terminals . | . . . . . Fabricators . | . . . . . Repair Stations . | . . . . . Recycling Units . | . . . . . Scanalyzers . | . . . . . Garrison Access . | . . . . . Data Cores Recovered . | . . . . . Used . | . . . . . Hacking Detections 8 | . 8 . . . Full Trace Events . | . . . . . Feedback Events . | . . . . . Feedback Blocked . | . . . . . Robot Schematics Acquired . | . . . . . Robots Built . | . . . . . Authchips . | . . . . . Time . | . . . . . Total Robot Build Rating . | . . . . . Part Schematics Acquired . | . . . . . Parts Built . | . . . . . Authchips . | . . . . . Time . | . . . . . Total Part Build Rating . | . . . . . Parts Repaired . | . . . . . Time . | . . . . . Parts Recycled . | . . . . . Recycled Matter 6 | . 6 . . . Retrieved Matter 6 | . 6 . . . Retrieved Components . | . . . . . Parts Scanalyzed . | . . . . . Part Schematics Acquired . | . . . . . Parts Damaged . | . . . . . Bothacking | -11 -10 -10 -10 -8 ------------ Run | Yrd Mat Min Sub Mat Used RIF Installer . | . . . . . Robots Hacked . | . . . . . Non-combat . | . . . . . Combat . | . . . . . Robot Hacks Applied . | . . . . . Relay Couplers Released . | . . . . . Fabnet Peak Effective % . | . . . . . Robots Rewired . | . . . . . Allies Hacked . | . . . . . Hacks Repelled . | . . . . . Allies | -11 -10 -10 -10 -8 -------- Run | Yrd Mat Min Sub Mat Total Allies . | . . . . . Largest Group . | . . . . . Highest-Rated Group . | . . . . . Highest-Rated Ally . | . . . . . Total Orders . | . . . . . Ally Attacks . | . . . . . Total Damage . | . . . . . Kills . | . . . . . Allies Corrupted . | . . . . . Allies Melted . | . . . . . Intel | -11 -10 -10 -10 -8 ------- Run | Yrd Mat Min Sub Mat Robot Analysis Total 1 | . 1 . . . Derelict Logs Recovered 2 | . . 2 . . Drone Launches . | . . . . . Drone Recoveries . | . . . . . Exploration | -11 -10 -10 -10 -8 ------------- Run | Yrd Mat Min Sub Mat Turns Passed 3492 | 55 1362 1972 27 76 Spaces Moved 2088 | 48 881 1115 20 24 Core 9 | 9 . . . . Treads . | . . . . . Legs . | . . . . . Wheels 2079 | 39 881 1115 20 24 Hover . | . . . . . Flight . | . . . . . Fastest Speed 50 | 50 90 140 140 125 Average Speed 135 | 82 133 140 140 125 Slowest Speed 140 | 90 140 140 140 125 Overloaded Moves . | . . . . . Propulsion Burnouts . | . . . . . Robots Hopped . | . . . . . Cave-ins Triggered . | . . . . . Exploration Rate (%) 41 | 4 96 100 2 3 Regions Visited 4 Branch Regions 2 Pre-discovered Areas 2 | . . 2 . . Known Exits Taken 1 | . 1 . . . Unknown Exits Taken 3 | 1 . 1 1 . Scrap Searched 1 | . . 1 . . Spaces Dug . | . . . . . Terrain Destroyed . | . . . . . Melee . | . . . . . Projectile . | . . . . . AOE . | . . . . . Terrain Rammed . | . . . . . Walls Destroyed . | . . . . . Machines Disabled . | . . . . . Actions | -11 -10 -10 -10 -8 --------- Run | Yrd Mat Min Sub Mat Total 2625 | 60 998 1499 19 49 Wait 355 | . 8 347 . . Move 2084 | 47 880 1114 19 24 Hop . | . . . . . Pick Up 49 | 6 37 6 . . Fast Attach 4 | 4 . . . . Attach 12 | 2 3 2 . 5 Detach 2 | . . . . 2 Swap 17 | 1 14 2 . . Drop 24 | . 16 8 . . Fire 76 | . 39 19 . 18 Melee . | . . . . . Ram 2 | . 1 1 . . Kick . | . . . . . Crush . | . . . . . Escape Stasis . | . . . . . Rewire . | . . . . . Trap . | . . . . . Miscellaneous . | . . . . . Route ------- -11/Scrapyard -10/Materials (discovered 5 exits: *Mat x3 / *Min x2) -10/Mines (discovered 4 exits: *Mat x2 / [*Exi] / [*Sub]) -10/Subcaves -8/Materials (discovered 1 exit: Fac) History --------- Turn | Location | Event 15 | -11/Scrapyard | Discovered new exit (range 16) 56 | -11/Scrapyard | Entered Materials 187 | -10/Materials | Discovered new exit (range 14) 200 | -10/Materials | Identified exit to Mines 318 | -10/Materials | Build established: Mutant 569 | -10/Materials | Destroyed 7 combat bots 744 | -10/Materials | Discovered new exit (range 16) 992 | -10/Materials | Discovered new exit (range 16) 1025 | -10/Materials | Identified exit to Materials 1418 | -10/Materials | Entered Mines 1478 | -10/Mines | Found the Drone Emporium 1486 | -10/Mines | Found Prototype Device 1525 | -10/Mines | Learned location of Zion (-7) 1563 | -10/Mines | A weapon hastily lodged in a ceiling crevice suddenly fell to the ground 2122 | -10/Mines | Core integrity fell below 50% 2180 | -10/Mines | Learned location of 1 exit from Materials 2206 | -10/Mines | Discovered exit to Materials (range 9) 2220 | -10/Mines | Met a Derelict shopkeep closing up shop 2660 | -10/Mines | Deemed a non-threat by the Exiles lab entrance 2660 | -10/Mines | Discovered new exit (range 5) 2721 | -10/Mines | Discovered new exit (range 11) 2787 | -10/Mines | Discovered exit to Materials (range 6) 3070 | -10/Mines | Learned location of Storage (-9) 3390 | -10/Mines | Entered Subcaves 3406 | -10/Subcaves | Discovered new exit (range 9) 3417 | -10/Subcaves | Entered Materials 3417 | -8/Materials | Evolved 4 slots: Propulsion x2, Utility x2 3418 | -8/Materials | Identified exit to Factory 3420 | -8/Materials | Identified Bomb Drone Bay 3463 | -8/Materials | Garrison activated, responded to threat 3493 | -8/Materials | Self-destructed Last Messages --------------- O-16 Technician: "IFF HANDSHAKE FAILED. SECURING TERMINAL." ALERT: Hostiles spotted, dispatching reinforcements to Terminal M011. M-13 Machinist repairs O-16 Technician. W-25 Informer distress signal alerts nearby ally. Critical hit (Burn: +37). W-25 Informer calls for garrison support. ALERT: Activating Garrison Access M001. Critical hit (Burn: +37). W-25 Informer destroyed. G-47 Trooper suffers critical hit (Destroy). Destroyed Particle Gun. G-47 Trooper destroyed. Switching to secondary target: L-31 Rogue. Assault Rifle destroyed. R-06 Scavenger collects Lgt. Nuclear Core. Wheel destroyed. Critical hit (Burn: +37). Map ----- +----------------------------------------------------+ | | | | | | | | | | | | | | | ?????????????????????????????????????????????????? | | ?????????????????????????????????????????????????? | | ?????????????????????????????????????????????????? | | ?????????????????????????????????????????????????? | | ?????????????????????????????????????????????????? | | ?????????????????????????????????????????????????? | | ?????????????????????????????????????????????????? | | ?????????????????????????????????????????????????? | | ?????????????????????????????????????????????????? | | ?????????????????????????????????????????????????? | | ?????????????????????????????????????????????????? | | ?????????????????????????????????????????????????? | | ?????????????????????????????????????????????????? | | ???????????????##########??????#?????????????????? | | ???????????????#* ######g#?????????????????? | | ???????????????# """ # gu#?????????????????? | | ???????????????# """"" # #?????????????????? | | ???????????????# """"" # ###???????????????? | | ???????????????# """"" /@ ????????? | | ???????????????# """ #lg ????????? | | ???????????????# #=gr######### ##?????????? | | ???????????????# # = #????????????????????? | | ???????????????# # % #????????????????????? | | ???????????????########## ! #????????????????????? | | ????????????????????????# #????????????????????? | | ????????????????????????# +????????????????????? | | ????????????????????????# #????????????????????? | | ????????????????????????# #????????????????????? | | ????????????????????????# #????????????????????? | | ????????????????????????? ????????????????????? | | ????????????????????????? ????????????????????? | | ????????????????????????? ????????????????????? | | ????????????????????????? ] ????????????????????? | | ????????????????????????? ?????????????????????? | | ?????????????????????????????????????????????????? | | ?????????????????????????????????????????????????? | | ?????????????????????????????????????????????????? | | ?????????????????????????????????????????????????? | | ?????????????????????????????????????????????????? | | ?????????????????????????????????????????????????? | | ?????????????????????????????????????????????????? | | ?????????????????????????????????????????????????? | | ?????????????????????????????????????????????????? | +----------------------------------------------------+ Best States ------------- Heat Dissipation 31 Energy Generation 14 Energy Capacity 275 Matter Stores 300 Matter Capacity 300 Sight Range 16 Terrain Scan Range 14 Terrain Scan Density 10 ECM Strength 1 Resistance: KI 20 Resistance: TH 20 Resistance: EX 20 Resistance: EM 20 Resistance: I 20 Resistance: S 20 Resistance: P 20 Core Shielding 20 Evasion (%) 50 Offensive Hacking 10 Item Schematics ----------------- None Robot Schematics ------------------ None Fabricated ------------ Nothing Alien Tech Used ----------------- None Achievements -------------- None Challenges ------------ None Game ------ Seed MissilePortableCoupler Manual? 0 Play Time 00:28:06 Cumulative 7.4 hours Start 2024.04.02 @ 19:23:49 End 2024.04.03 @ 11:25:32 Sessions 1 Manual Loads 0 Difficulty Adventurer Special Mode None Game No. 9 Rogue 0 Adventurer 9 Explorer 0 Win Type - Total 0 Types 0/0/0/0/0/0/0/0/0 Lore% 14 Gallery% 16 Achievement% 11 Wizard Run 0 Options --------- Layout 1 ASCII 0 Keyboard 0 Movement Mouse Keybinds 0 Fullscreen 1 Font 24/Smallcaps Map View 50x35 Zoom Use 0% Tactical HUD 0 Map Filters NONE Filters NONE Steam 0 RUN: a66fdf2c-d99b-4d77-9c18-93f0cb1e6fa3